[Event "Titled Tuesday Blitz June 13 Early 2023"]
[White "carokannlover213"]
[Black "Taboas Rodriguez, Daniel"]
[BlackFideId "2208466"]
[WhiteElo "2741"]
[BlackElo "2365"]
[Result "1/2-1/2"]
[Round "6"]
[TimeControl "180+2"]
[Date "2023.06.13"]
[WhiteClock "0:00:14"]
[BlackClock "0:00:25"]
[Board "98"]

1. f4 {[%clk 0:02:59]}  d5 {[%clk 0:02:59]} 2. Nf3 {[%clk 0:02:58]}  Bg4 {[%clk 0:02:59]} 3. Ne5 {[%clk 0:02:58]}  Bh5 {[%clk 0:02:56]} 4. b3 {[%clk 0:02:51]}  f6 {[%clk 0:02:56]} 5. Nf3 {[%clk 0:02:31]}  Bxf3 {[%clk 0:02:54]} 6. exf3 {[%clk 0:02:31]}  e6 {[%clk 0:02:48]} 7. d4 {[%clk 0:02:29]}  Bd6 {[%clk 0:02:49]} 8. Bd3 {[%clk 0:02:29]}  Nh6 {[%clk 0:02:43]} 9. Qe2 {[%clk 0:02:23]}  Qe7 {[%clk 0:02:41]} 10. O-O {[%clk 0:02:22]}  O-O {[%clk 0:02:41]} 11. Re1 {[%clk 0:02:19]}  Re8 {[%clk 0:02:41]} 12. g4 {[%clk 0:02:07]}  c5 {[%clk 0:02:40]} 13. f5 {[%clk 0:01:53]}  Nc6 {[%clk 0:02:25]} 14. dxc5 {[%clk 0:01:39]}  Bxc5+ {[%clk 0:02:25]} 15. Kh1 {[%clk 0:01:37]}  exf5 {[%clk 0:02:17]} 16. Qxe7 {[%clk 0:01:34]}  Rxe7 {[%clk 0:02:12]} 17. Rxe7 {[%clk 0:01:33]}  Nxe7 {[%clk 0:02:00]} 18. Bxh6 {[%clk 0:01:04]}  gxh6 {[%clk 0:02:01]} 19. gxf5 {[%clk 0:00:52]}  Bd4 {[%clk 0:01:35]} 20. c3 {[%clk 0:00:52]}  Be5 {[%clk 0:01:36]} 21. f4 {[%clk 0:00:46]}  Bxf4 {[%clk 0:01:34]} 22. Na3 {[%clk 0:00:47]}  Be5 {[%clk 0:01:30]} 23. Rg1+ {[%clk 0:00:44]}  Kf7 {[%clk 0:01:30]} 24. c4 {[%clk 0:00:43]}  Rg8 {[%clk 0:00:37]} 25. Rxg8 {[%clk 0:00:38]}  Nxg8 {[%clk 0:00:37]} 26. cxd5 {[%clk 0:00:38]}  Ke7 {[%clk 0:00:37]} 27. Nc4 {[%clk 0:00:36]}  a6 {[%clk 0:00:31]} 28. a4 {[%clk 0:00:28]}  Bf4 {[%clk 0:00:27]} 29. Na5 {[%clk 0:00:20]}  b6 {[%clk 0:00:22]} 30. Nc6+ {[%clk 0:00:15]}  Kd6 {[%clk 0:00:22]} 31. Bxa6 {[%clk 0:00:13]}  Kxd5 {[%clk 0:00:22]} 32. Bc4+ {[%clk 0:00:11]}  Kxc6 {[%clk 0:00:22]} 33. Bxg8 {[%clk 0:00:12]}  h5 {[%clk 0:00:18]} 34. Bxh7 {[%clk 0:00:10]}  h4 {[%clk 0:00:18]} 35. Bg8 {[%clk 0:00:07]}  Kc5 {[%clk 0:00:18]} 36. h3 {[%clk 0:00:07]}  Be5 {[%clk 0:00:17]} 37. Kg2 {[%clk 0:00:07]}  Kb4 {[%clk 0:00:18]} 38. Kf3 {[%clk 0:00:07]}  Bd4 {[%clk 0:00:18]} 39. Kg4 {[%clk 0:00:07]}  Bf2 {[%clk 0:00:19]} 40. Kh5 {[%clk 0:00:07]}  Be1 {[%clk 0:00:19]} 41. Kg6 {[%clk 0:00:07]}  Bc3 {[%clk 0:00:19]} 42. Be6 {[%clk 0:00:08]}  Bd4 {[%clk 0:00:19]} 43. Kf7 {[%clk 0:00:08]}  Be5 {[%clk 0:00:19]} 44. Ke7 {[%clk 0:00:08]}  Kc5 {[%clk 0:00:18]} 45. Kd7 {[%clk 0:00:08]}  Bd4 {[%clk 0:00:18]} 46. Bf7 {[%clk 0:00:08]}  Be3 {[%clk 0:00:19]} 47. Ke6 {[%clk 0:00:06]}  Bd4 {[%clk 0:00:19]} 48. Bh5 {[%clk 0:00:07]}  Bc3 {[%clk 0:00:19]} 49. Bd1 {[%clk 0:00:07]}  Bd4 {[%clk 0:00:19]} 50. Kf7 {[%clk 0:00:08]}  Be5 {[%clk 0:00:19]} 51. Kg6 {[%clk 0:00:09]}  Bd4 {[%clk 0:00:19]} 52. Be2 {[%clk 0:00:09]}  Be5 {[%clk 0:00:20]} 53. Bc4 {[%clk 0:00:10]}  Bd4 {[%clk 0:00:20]} 54. Kh5 {[%clk 0:00:10]}  Bf2 {[%clk 0:00:20]} 55. Kg4 {[%clk 0:00:11]}  Be1 {[%clk 0:00:20]} 56. Kf3 {[%clk 0:00:11]}  Bg3 {[%clk 0:00:20]} 57. Ke2 {[%clk 0:00:12]}  Be5 {[%clk 0:00:20]} 58. Ke3 {[%clk 0:00:12]}  Bc3 {[%clk 0:00:20]} 59. Kf3 {[%clk 0:00:12]}  Be5 {[%clk 0:00:20]} 60. Ke3 {[%clk 0:00:12]}  Bg3 {[%clk 0:00:20]} 61. Ke2 {[%clk 0:00:12]}  Be5 {[%clk 0:00:21]} 62. Kf3 {[%clk 0:00:13]}  Bg3 {[%clk 0:00:21]} 63. Kg4 {[%clk 0:00:13]}  Bf2 {[%clk 0:00:22]} 64. Bf7 {[%clk 0:00:13]}  Be1 {[%clk 0:00:22]} 65. Kf3 {[%clk 0:00:14]}  Bg3 {[%clk 0:00:22]} 66. Ke4 {[%clk 0:00:14]}  Be5 {[%clk 0:00:22]} 67. Kd3 {[%clk 0:00:15]}  Bb2 {[%clk 0:00:22]} 68. Kd2 {[%clk 0:00:14]}  Be5 {[%clk 0:00:22]} 69. Kd3 {[%clk 0:00:08]}  Bb2 {[%clk 0:00:22]} 70. Ke4 {[%clk 0:00:09]}  Be5 {[%clk 0:00:23]} 71. Kf3 {[%clk 0:00:09]}  Bg3 {[%clk 0:00:23]} 72. Kg4 {[%clk 0:00:10]}  Bf2 {[%clk 0:00:24]} 73. Kh5 {[%clk 0:00:11]}  Be3 {[%clk 0:00:24]} 74. Kg6 {[%clk 0:00:11]}  Bd4 {[%clk 0:00:23]} 75. Bc4 {[%clk 0:00:12]}  Bc3 {[%clk 0:00:23]} 76. Kf7 {[%clk 0:00:12]}  Bd4 {[%clk 0:00:23]} 77. Ke6 {[%clk 0:00:13]}  Bc3 {[%clk 0:00:23]} 78. Kd7 {[%clk 0:00:13]}  Bd4 {[%clk 0:00:24]} 79. Kc8 {[%clk 0:00:13]}  Bc3 {[%clk 0:00:23]} 80. Kb7 {[%clk 0:00:13]}  Bb4 {[%clk 0:00:23]} 81. Ka6 {[%clk 0:00:13]}  Bc3 {[%clk 0:00:24]} 82. Be2 {[%clk 0:00:13]}  Bb4 {[%clk 0:00:24]} 83. Kb7 {[%clk 0:00:11]}  Bc3 {[%clk 0:00:24]} 84. Kc7 {[%clk 0:00:12]}  Bb4 {[%clk 0:00:25]} 85. Kd7 {[%clk 0:00:13]}  Bc3 {[%clk 0:00:25]} 86. Ke6 {[%clk 0:00:14]} 1/2-1/2


[Site "https://www.chess.com"]

[Event "Titled Tuesday Blitz June 13 Early 2023"]
[White "Yelisieiev, Yevhenii"]
[Black "Karthik Rajaa"]
[WhiteFideId "14139642"]
[BlackFideId "25035215"]
[WhiteElo "2403"]
[BlackElo "2215"]
[Result "1-0"]
[Round "6"]
[TimeControl "180+2"]
[Date "2023.06.13"]
[WhiteClock "0:00:13"]
[BlackClock "0:00:15"]
[Board "100"]

1. d4 {[%clk 0:02:40]}  Nf6 {[%clk 0:02:59]} 2. Nf3 {[%clk 0:02:41]}  g6 {[%clk 0:02:58]} 3. g3 {[%clk 0:02:40]}  Bg7 {[%clk 0:02:57]} 4. Bg2 {[%clk 0:02:41]}  O-O {[%clk 0:02:58]} 5. O-O {[%clk 0:02:41]}  d6 {[%clk 0:02:58]} 6. b3 {[%clk 0:02:42]}  b5 {[%clk 0:02:58]} 7. Ne1 {[%clk 0:02:39]}  c6 {[%clk 0:02:57]} 8. Nd3 {[%clk 0:02:33]}  Bb7 {[%clk 0:02:56]} 9. Bb2 {[%clk 0:02:33]}  Nbd7 {[%clk 0:02:55]} 10. Nd2 {[%clk 0:02:31]}  Rb8 {[%clk 0:02:41]} 11. e4 {[%clk 0:02:23]}  Nb6 {[%clk 0:02:32]} 12. e5 {[%clk 0:02:17]}  Ne8 {[%clk 0:02:21]} 13. Qe2 {[%clk 0:02:08]}  Nc7 {[%clk 0:02:11]} 14. Rad1 {[%clk 0:02:03]}  a5 {[%clk 0:02:10]} 15. f4 {[%clk 0:01:56]}  b4 {[%clk 0:02:10]} 16. g4 {[%clk 0:01:35]}  Ncd5 {[%clk 0:02:07]} 17. f5 {[%clk 0:01:35]}  Bh6 {[%clk 0:01:59]} 18. Rf3 {[%clk 0:01:34]}  Ba6 {[%clk 0:01:53]} 19. Ne4 {[%clk 0:01:26]}  Nf4 {[%clk 0:01:40]} 20. Qf2 {[%clk 0:01:02]}  Nxd3 {[%clk 0:01:31]} 21. cxd3 {[%clk 0:01:02]}  dxe5 {[%clk 0:00:56]} 22. dxe5 {[%clk 0:00:41]}  Nd5 {[%clk 0:00:56]} 23. Qh4 {[%clk 0:00:34]}  Bg7 {[%clk 0:00:45]} 24. f6 {[%clk 0:00:25]}  exf6 {[%clk 0:00:37]} 25. exf6 {[%clk 0:00:23]}  Bh8 {[%clk 0:00:36]} 26. Rh3 {[%clk 0:00:18]}  h5 {[%clk 0:00:36]} 27. gxh5 {[%clk 0:00:18]}  Nf4 {[%clk 0:00:15]} 28. hxg6 {[%clk 0:00:13]} 1-0


[Site "https://www.chess.com"]

[Event "Titled Tuesday Blitz June 13 Early 2023"]
[White "Orlov, Georgi"]
[Black "LangesNasenhaar"]
[WhiteFideId "2011271"]
[WhiteElo "2632"]
[BlackElo "2463"]
[Result "0-1"]
[Round "6"]
[TimeControl "180+2"]
[Date "2023.06.13"]
[WhiteClock "0:00:00"]
[BlackClock "0:00:04"]
[Board "103"]

1. d4 {[%clk 0:03:00]}  g6 {[%clk 0:03:00]} 2. Nf3 {[%clk 0:02:59]}  Bg7 {[%clk 0:03:00]} 3. c4 {[%clk 0:03:00]}  d6 {[%clk 0:02:58]} 4. Nc3 {[%clk 0:02:58]}  e5 {[%clk 0:02:58]} 5. d5 {[%clk 0:02:52]}  f5 {[%clk 0:02:57]} 6. e4 {[%clk 0:02:52]}  Nf6 {[%clk 0:02:57]} 7. exf5 {[%clk 0:02:50]}  gxf5 {[%clk 0:02:56]} 8. Ng5 {[%clk 0:02:50]}  h6 {[%clk 0:02:50]} 9. Ne6 {[%clk 0:02:49]}  Bxe6 {[%clk 0:02:51]} 10. dxe6 {[%clk 0:02:49]}  c6 {[%clk 0:02:51]} 11. Qf3 {[%clk 0:02:46]}  O-O {[%clk 0:02:39]} 12. Qxf5 {[%clk 0:02:43]}  Nd5 {[%clk 0:02:38]} 13. Qg4 {[%clk 0:02:38]}  Nxc3 {[%clk 0:02:36]} 14. bxc3 {[%clk 0:02:36]}  Qf6 {[%clk 0:02:35]} 15. Be3 {[%clk 0:02:34]}  Na6 {[%clk 0:02:28]} 16. Rb1 {[%clk 0:02:29]}  b6 {[%clk 0:02:25]} 17. Be2 {[%clk 0:02:27]}  Rae8 {[%clk 0:02:13]} 18. Bf3 {[%clk 0:02:12]}  Nb8 {[%clk 0:02:11]} 19. Be4 {[%clk 0:02:05]}  Qxe6 {[%clk 0:02:03]} 20. Qh4 {[%clk 0:01:54]}  d5 {[%clk 0:01:59]} 21. cxd5 {[%clk 0:01:43]}  cxd5 {[%clk 0:01:59]} 22. Bc2 {[%clk 0:01:43]}  Nc6 {[%clk 0:01:48]} 23. O-O {[%clk 0:01:42]}  Ne7 {[%clk 0:01:45]} 24. Rb4 {[%clk 0:01:30]}  Nf5 {[%clk 0:01:42]} 25. Bxf5 {[%clk 0:01:29]}  Rxf5 {[%clk 0:01:36]} 26. Rg4 {[%clk 0:01:28]}  Kh7 {[%clk 0:01:31]} 27. Rd1 {[%clk 0:01:19]}  Ref8 {[%clk 0:01:23]} 28. Qg3 {[%clk 0:01:12]}  R8f7 {[%clk 0:01:15]} 29. Qh3 {[%clk 0:01:09]}  Qf6 {[%clk 0:01:07]} 30. f3 {[%clk 0:00:57]}  Qe6 {[%clk 0:01:00]} 31. Rh4 {[%clk 0:00:51]}  e4 {[%clk 0:00:46]} 32. fxe4 {[%clk 0:00:30]}  dxe4 {[%clk 0:00:47]} 33. Qg4 {[%clk 0:00:30]}  Re7 {[%clk 0:00:34]} 34. h3 {[%clk 0:00:25]}  Ra5 {[%clk 0:00:26]} 35. Qf4 {[%clk 0:00:20]}  Rxa2 {[%clk 0:00:17]} 36. Rd6 {[%clk 0:00:18]}  Ra1+ {[%clk 0:00:14]} 37. Kf2 {[%clk 0:00:18]}  Qf7 {[%clk 0:00:11]} 38. Qxf7 {[%clk 0:00:16]}  Rxf7+ {[%clk 0:00:11]} 39. Ke2 {[%clk 0:00:16]}  Ra2+ {[%clk 0:00:10]} 40. Ke1 {[%clk 0:00:17]}  Rxg2 {[%clk 0:00:10]} 41. Rxe4 {[%clk 0:00:15]}  Bxc3+ {[%clk 0:00:08]} 42. Bd2 {[%clk 0:00:11]}  Bxd2+ {[%clk 0:00:07]} 43. Rxd2 {[%clk 0:00:10]}  Rxd2 {[%clk 0:00:08]} 44. Kxd2 {[%clk 0:00:10]}  Rb7 {[%clk 0:00:06]} 45. Re6 {[%clk 0:00:09]}  b5 {[%clk 0:00:05]} 46. Ra6 {[%clk 0:00:08]}  b4 {[%clk 0:00:06]} 47. Kc2 {[%clk 0:00:07]}  b3+ {[%clk 0:00:06]} 48. Kb2 {[%clk 0:00:08]}  Kg7 {[%clk 0:00:07]} 49. h4 {[%clk 0:00:08]}  Kh7 {[%clk 0:00:06]} 50. h5 {[%clk 0:00:07]}  Kg7 {[%clk 0:00:06]} 51. Rg6+ {[%clk 0:00:07]}  Kh7 {[%clk 0:00:06]} 52. Ra6 {[%clk 0:00:07]}  Kg7 {[%clk 0:00:05]} 53. Rg6+ {[%clk 0:00:07]}  Kf8 {[%clk 0:00:04]} 54. Rxh6 {[%clk 0:00:07]}  a5 {[%clk 0:00:04]} 55. Ra6 {[%clk 0:00:07]}  Rb5 {[%clk 0:00:05]} 56. h6 {[%clk 0:00:07]}  Kg8 {[%clk 0:00:05]} 57. Ra7 {[%clk 0:00:07]}  Kh8 {[%clk 0:00:05]} 58. h7 {[%clk 0:00:05]}  Rh5 {[%clk 0:00:03]} 59. Kxb3 {[%clk 0:00:00]}  Rxh7 {[%clk 0:00:04]} 0-1


[Site "https://www.chess.com"]

[Event "Titled Tuesday Blitz June 13 Early 2023"]
[White "Moral Garcia, Serafin"]
[Black "a-z30"]
[WhiteFideId "2201925"]
[WhiteElo "2274"]
[BlackElo "2444"]
[Result "1-0"]
[Round "6"]
[TimeControl "180+2"]
[Date "2023.06.13"]
[WhiteClock "0:00:53"]
[BlackClock "0:00:00"]
[Board "106"]

1. e4 {[%clk 0:03:00]}  d6 {[%clk 0:03:00]} 2. d4 {[%clk 0:03:00]}  Nf6 {[%clk 0:03:01]} 3. Nc3 {[%clk 0:03:00]}  g6 {[%clk 0:03:02]} 4. f4 {[%clk 0:03:00]}  Bg7 {[%clk 0:03:02]} 5. Nf3 {[%clk 0:03:00]}  O-O {[%clk 0:03:03]} 6. Bd3 {[%clk 0:03:00]}  Nc6 {[%clk 0:03:03]} 7. e5 {[%clk 0:02:59]}  Nh5 {[%clk 0:03:00]} 8. Be4 {[%clk 0:02:59]}  Bg4 {[%clk 0:02:19]} 9. Be3 {[%clk 0:02:51]}  f6 {[%clk 0:01:35]} 10. e6 {[%clk 0:02:30]}  f5 {[%clk 0:01:22]} 11. Bd5 {[%clk 0:02:07]}  Nf6 {[%clk 0:01:14]} 12. Bb3 {[%clk 0:01:51]}  d5 {[%clk 0:01:12]} 13. h3 {[%clk 0:01:48]}  Bxf3 {[%clk 0:01:12]} 14. Qxf3 {[%clk 0:01:48]}  Nb4 {[%clk 0:01:07]} 15. a3 {[%clk 0:01:47]}  Na6 {[%clk 0:00:55]} 16. O-O-O {[%clk 0:01:42]}  c6 {[%clk 0:00:54]} 17. g4 {[%clk 0:01:41]}  Ne4 {[%clk 0:00:53]} 18. Nxe4 {[%clk 0:01:35]}  fxe4 {[%clk 0:00:51]} 19. Qg2 {[%clk 0:01:27]}  Kh8 {[%clk 0:00:39]} 20. Rdf1 {[%clk 0:01:12]}  Qd6 {[%clk 0:00:14]} 21. f5 {[%clk 0:01:08]}  gxf5 {[%clk 0:00:08]} 22. gxf5 {[%clk 0:01:07]}  Rg8 {[%clk 0:00:08]} 23. Qd2 {[%clk 0:01:00]}  Bf6 {[%clk 0:00:04]} 24. Rfg1 {[%clk 0:01:00]}  Rxg1+ {[%clk 0:00:03]} 25. Rxg1 {[%clk 0:01:01]}  Rg8 {[%clk 0:00:03]} 26. Rxg8+ {[%clk 0:00:55]}  Kxg8 {[%clk 0:00:04]} 27. Bf4 {[%clk 0:00:56]}  Qd8 {[%clk 0:00:03]} 28. Qg2+ {[%clk 0:00:53]}  Kh8 {[%clk 0:00:03]} 29. c3 {[%clk 0:00:53]}  Qg8 {[%clk 0:00:00]} 30. Qg4 {[%clk 0:00:53]} 1-0


[Site "https://www.chess.com"]

[Event "Titled Tuesday Blitz June 13 Early 2023"]
[White "Aloma Vidal, Robert"]
[Black "Sarkar, Justin"]
[WhiteFideId "2260409"]
[BlackFideId "2010011"]
[WhiteElo "2435"]
[BlackElo "2151"]
[Result "1-0"]
[Round "6"]
[TimeControl "180+2"]
[Date "2023.06.13"]
[WhiteClock "0:02:04"]
[BlackClock "0:02:12"]
[Board "114"]

1. e4 {[%clk 0:03:00]}  b5 {[%clk 0:02:55]} 2. Bxb5 {[%clk 0:02:59]}  Bb7 {[%clk 0:02:55]} 3. Nc3 {[%clk 0:02:58]}  f5 {[%clk 0:02:54]} 4. d3 {[%clk 0:02:54]}  Nf6 {[%clk 0:02:53]} 5. Nf3 {[%clk 0:02:50]}  fxe4 {[%clk 0:02:52]} 6. dxe4 {[%clk 0:02:50]}  Nxe4 {[%clk 0:02:47]} 7. Nxe4 {[%clk 0:02:47]}  Bxe4 {[%clk 0:02:46]} 8. O-O {[%clk 0:02:33]}  e6 {[%clk 0:02:44]} 9. Re1 {[%clk 0:02:22]}  Bc6 {[%clk 0:02:39]} 10. Bd3 {[%clk 0:02:05]}  Be7 {[%clk 0:02:34]} 11. Ne5 {[%clk 0:02:04]}  O-O {[%clk 0:02:12]} 12. Qh5 {[%clk 0:02:04]} 1-0


[Site "https://www.chess.com"]

[Event "Titled Tuesday Blitz June 13 Early 2023"]
[White "Kozak, Antoni"]
[Black "Lopez, Nelson M, Ii"]
[WhiteFideId "21832030"]
[BlackFideId "2027895"]
[WhiteElo "2470"]
[BlackElo "2443"]
[Result "0-1"]
[Round "6"]
[TimeControl "180+2"]
[Date "2023.06.13"]
[WhiteClock "0:00:00"]
[BlackClock "0:00:13"]
[Board "117"]

1. b3 {[%clk 0:03:00]}  d5 {[%clk 0:02:59]} 2. Bb2 {[%clk 0:03:01]}  Bg4 {[%clk 0:03:00]} 3. d3 {[%clk 0:03:00]}  c6 {[%clk 0:02:59]} 4. Nd2 {[%clk 0:03:00]}  Nd7 {[%clk 0:02:59]} 5. h3 {[%clk 0:02:59]}  Bh5 {[%clk 0:03:00]} 6. g4 {[%clk 0:02:59]}  Bg6 {[%clk 0:03:00]} 7. e3 {[%clk 0:03:00]}  e5 {[%clk 0:03:00]} 8. Ne2 {[%clk 0:03:00]}  Bd6 {[%clk 0:03:01]} 9. Bg2 {[%clk 0:03:00]}  h5 {[%clk 0:03:00]} 10. Ng3 {[%clk 0:02:58]}  hxg4 {[%clk 0:03:00]} 11. hxg4 {[%clk 0:02:58]}  Rxh1+ {[%clk 0:03:01]} 12. Bxh1 {[%clk 0:02:59]}  Qh4 {[%clk 0:02:55]} 13. Qe2 {[%clk 0:02:44]}  Ngf6 {[%clk 0:02:55]} 14. Bf3 {[%clk 0:02:44]}  e4 {[%clk 0:02:51]} 15. dxe4 {[%clk 0:02:33]}  Bxg3 {[%clk 0:02:50]} 16. fxg3 {[%clk 0:02:18]}  Qxg3+ {[%clk 0:02:51]} 17. Qf2 {[%clk 0:02:19]}  Qxf2+ {[%clk 0:02:45]} 18. Kxf2 {[%clk 0:02:19]}  dxe4 {[%clk 0:02:43]} 19. Be2 {[%clk 0:02:17]}  O-O-O {[%clk 0:02:36]} 20. Nc4 {[%clk 0:02:08]}  Kc7 {[%clk 0:02:34]} 21. g5 {[%clk 0:02:05]}  Nd5 {[%clk 0:02:23]} 22. Bxg7 {[%clk 0:02:02]}  b5 {[%clk 0:02:24]} 23. Ne5 {[%clk 0:01:58]}  Rg8 {[%clk 0:02:05]} 24. Nxd7 {[%clk 0:01:49]}  Rxg7 {[%clk 0:02:00]} 25. Nc5 {[%clk 0:01:04]}  Kd6 {[%clk 0:01:51]} 26. Na6 {[%clk 0:01:03]}  Rh7 {[%clk 0:01:48]} 27. Bd1 {[%clk 0:00:10]}  Rh3 {[%clk 0:01:31]} 28. c4 {[%clk 0:00:08]}  Nxe3 {[%clk 0:01:26]} 29. c5+ {[%clk 0:00:08]}  Ke5 {[%clk 0:01:17]} 30. Nb4 {[%clk 0:00:08]}  Kf4 {[%clk 0:00:55]} 31. Nxc6 {[%clk 0:00:04]}  Rh1 {[%clk 0:00:47]} 32. Nd4 {[%clk 0:00:03]}  Rxd1 {[%clk 0:00:34]} 33. Rxd1 {[%clk 0:00:01]}  Nxd1+ {[%clk 0:00:35]} 34. Ke1 {[%clk 0:00:01]}  Nc3 {[%clk 0:00:28]} 35. c6 {[%clk 0:00:02]}  Nd5 {[%clk 0:00:21]} 36. Nxb5 {[%clk 0:00:02]}  Kxg5 {[%clk 0:00:20]} 37. Nxa7 {[%clk 0:00:02]}  f5 {[%clk 0:00:18]} 38. Nb5 {[%clk 0:00:02]}  f4 {[%clk 0:00:18]} 39. Nd6 {[%clk 0:00:02]}  f3 {[%clk 0:00:15]} 40. a4 {[%clk 0:00:00]}  e3 {[%clk 0:00:13]} 0-1


[Site "https://www.chess.com"]

[Event "Titled Tuesday Blitz June 13 Early 2023"]
[White "Mohammad Fahad, Rahman"]
[Black "Mrudul Dehankar"]
[WhiteFideId "10207791"]
[BlackFideId "25096990"]
[WhiteElo "2339"]
[BlackElo "2139"]
[Result "1-0"]
[Round "6"]
[TimeControl "180+2"]
[Date "2023.06.13"]
[WhiteClock "0:00:09"]
[BlackClock "0:00:00"]
[Board "118"]

1. Nf3 {[%clk 0:02:53]}  Nf6 {[%clk 0:02:59]} 2. g3 {[%clk 0:02:49]}  e6 {[%clk 0:02:59]} 3. Bg2 {[%clk 0:02:50]}  b5 {[%clk 0:02:55]} 4. O-O {[%clk 0:02:51]}  Bb7 {[%clk 0:02:53]} 5. a4 {[%clk 0:02:49]}  b4 {[%clk 0:02:48]} 6. a5 {[%clk 0:02:49]}  a6 {[%clk 0:02:43]} 7. d4 {[%clk 0:02:46]}  Be7 {[%clk 0:02:39]} 8. Nbd2 {[%clk 0:02:41]}  O-O {[%clk 0:02:36]} 9. Nc4 {[%clk 0:02:41]}  d6 {[%clk 0:02:34]} 10. b3 {[%clk 0:02:35]}  Nbd7 {[%clk 0:02:30]} 11. Bb2 {[%clk 0:02:35]}  Qc8 {[%clk 0:02:14]} 12. Re1 {[%clk 0:02:33]}  Re8 {[%clk 0:02:12]} 13. Qd2 {[%clk 0:02:33]}  Ne4 {[%clk 0:02:12]} 14. Qe3 {[%clk 0:02:25]}  Ndf6 {[%clk 0:01:56]} 15. h3 {[%clk 0:02:25]}  Nc3 {[%clk 0:01:44]} 16. Qd3 {[%clk 0:02:14]}  Nfe4 {[%clk 0:00:56]} 17. e3 {[%clk 0:02:12]}  f5 {[%clk 0:00:52]} 18. Nfd2 {[%clk 0:02:10]}  Bf6 {[%clk 0:00:48]} 19. Nxe4 {[%clk 0:02:07]}  Bxe4 {[%clk 0:00:16]} 20. Qd2 {[%clk 0:02:02]}  Qb7 {[%clk 0:00:11]} 21. Bf1 {[%clk 0:01:49]}  e5 {[%clk 0:00:07]} 22. Bxc3 {[%clk 0:01:34]}  bxc3 {[%clk 0:00:05]} 23. Qxc3 {[%clk 0:01:31]}  exd4 {[%clk 0:00:06]} 24. exd4 {[%clk 0:01:30]}  Qd5 {[%clk 0:00:06]} 25. Rad1 {[%clk 0:01:28]}  Rad8 {[%clk 0:00:03]} 26. Ne3 {[%clk 0:01:28]}  Qf7 {[%clk 0:00:04]} 27. Qc4 {[%clk 0:01:23]}  d5 {[%clk 0:00:04]} 28. Qxa6 {[%clk 0:01:24]}  Rd6 {[%clk 0:00:03]} 29. Qb5 {[%clk 0:01:21]}  f4 {[%clk 0:00:03]} 30. gxf4 {[%clk 0:01:13]}  Bh4 {[%clk 0:00:01]} 31. f5 {[%clk 0:00:57]}  c6 {[%clk 0:00:01]} 32. Qc5 {[%clk 0:00:54]}  Rf6 {[%clk 0:00:02]} 33. Bd3 {[%clk 0:00:43]}  Rxf5 {[%clk 0:00:02]} 34. Bxe4 {[%clk 0:00:32]}  Rg5+ {[%clk 0:00:02]} 35. Kh1 {[%clk 0:00:23]}  Bxf2 {[%clk 0:00:02]} 36. Qxc6 {[%clk 0:00:14]}  Rxe4 {[%clk 0:00:02]} 37. Nf5 {[%clk 0:00:10]}  Rxf5 {[%clk 0:00:00]} 38. Qc8+ {[%clk 0:00:09]} 1-0


[Site "https://www.chess.com"]

[Event "Titled Tuesday Blitz June 13 Early 2023"]
[White "Kuznetsov, Mikhail"]
[Black "Itgelt, Khuyagtsogt"]
[WhiteFideId "4117190"]
[BlackFideId "4902912"]
[WhiteElo "1981"]
[BlackElo "2227"]
[Result "0-1"]
[Round "6"]
[TimeControl "180+2"]
[Date "2023.06.13"]
[WhiteClock "0:00:00"]
[BlackClock "0:00:07"]
[Board "119"]

1. d4 {[%clk 0:02:52]}  Nf6 {[%clk 0:02:57]} 2. Nf3 {[%clk 0:02:51]}  g6 {[%clk 0:02:58]} 3. c4 {[%clk 0:02:50]}  Bg7 {[%clk 0:02:57]} 4. Nc3 {[%clk 0:02:51]}  d5 {[%clk 0:02:58]} 5. cxd5 {[%clk 0:02:47]}  Nxd5 {[%clk 0:02:58]} 6. e4 {[%clk 0:02:47]}  Nxc3 {[%clk 0:02:59]} 7. bxc3 {[%clk 0:02:47]}  c5 {[%clk 0:02:58]} 8. Bc4 {[%clk 0:02:44]}  O-O {[%clk 0:02:53]} 9. O-O {[%clk 0:02:44]}  cxd4 {[%clk 0:02:48]} 10. cxd4 {[%clk 0:02:44]}  Nc6 {[%clk 0:02:46]} 11. Be3 {[%clk 0:02:43]}  Bg4 {[%clk 0:02:46]} 12. d5 {[%clk 0:02:43]}  Ne5 {[%clk 0:02:37]} 13. Be2 {[%clk 0:02:41]}  Nxf3+ {[%clk 0:02:33]} 14. gxf3 {[%clk 0:02:41]}  Bh3 {[%clk 0:02:34]} 15. Re1 {[%clk 0:02:38]}  Bxa1 {[%clk 0:02:34]} 16. Qxa1 {[%clk 0:02:39]}  f6 {[%clk 0:02:34]} 17. Bh6 {[%clk 0:02:29]}  Rf7 {[%clk 0:02:30]} 18. f4 {[%clk 0:02:29]}  Qd7 {[%clk 0:02:21]} 19. Qc3 {[%clk 0:02:20]}  Bg4 {[%clk 0:02:16]} 20. f3 {[%clk 0:02:13]}  Bh5 {[%clk 0:02:14]} 21. Kg2 {[%clk 0:02:08]}  Rc8 {[%clk 0:02:12]} 22. Qd4 {[%clk 0:02:07]}  e5 {[%clk 0:01:49]} 23. fxe5 {[%clk 0:01:44]}  fxe5 {[%clk 0:01:50]} 24. Qxe5 {[%clk 0:01:45]}  Re8 {[%clk 0:00:50]} 25. Qd4 {[%clk 0:01:29]}  Rxf3 {[%clk 0:00:28]} 26. Bxf3 {[%clk 0:01:26]}  Bxf3+ {[%clk 0:00:29]} 27. Kxf3 {[%clk 0:01:25]}  Qh3+ {[%clk 0:00:30]} 28. Ke2 {[%clk 0:01:25]}  Qxh2+ {[%clk 0:00:25]} 29. Kd3 {[%clk 0:01:19]}  Qxh6 {[%clk 0:00:22]} 30. e5 {[%clk 0:01:18]}  Qh3+ {[%clk 0:00:20]} 31. Kd2 {[%clk 0:01:14]}  Qa3 {[%clk 0:00:10]} 32. Qc4 {[%clk 0:00:15]}  Qb2+ {[%clk 0:00:10]} 33. Kd3 {[%clk 0:00:12]}  b5 {[%clk 0:00:08]} 34. Qc6 {[%clk 0:00:02]}  Qa3+ {[%clk 0:00:06]} 35. Kd2 {[%clk 0:00:01]}  Qb4+ {[%clk 0:00:06]} 36. Kd1 {[%clk 0:00:01]}  Qb1+ {[%clk 0:00:06]} 37. Kd2 {[%clk 0:00:00]}  Qxa2+ {[%clk 0:00:07]} 0-1


[Site "https://www.chess.com"]

[Event "Titled Tuesday Blitz June 13 Early 2023"]
[White "Szyszylo, Rafal"]
[Black "MaryanKyrychenko"]
[WhiteFideId "1109626"]
[WhiteElo "1951"]
[BlackElo "2617"]
[Result "0-1"]
[Round "6"]
[TimeControl "180+2"]
[Date "2023.06.13"]
[WhiteClock "0:00:00"]
[BlackClock "0:00:19"]
[Board "120"]

1. e4 {[%clk 0:02:55]}  c5 {[%clk 0:02:59]} 2. Nc3 {[%clk 0:02:54]}  a6 {[%clk 0:02:57]} 3. g3 {[%clk 0:02:53]}  e6 {[%clk 0:02:57]} 4. Bg2 {[%clk 0:02:53]}  Nc6 {[%clk 0:02:56]} 5. d3 {[%clk 0:02:53]}  Nf6 {[%clk 0:02:56]} 6. f4 {[%clk 0:02:53]}  d5 {[%clk 0:02:56]} 7. e5 {[%clk 0:02:20]}  Nd7 {[%clk 0:02:54]} 8. Nf3 {[%clk 0:02:16]}  b5 {[%clk 0:02:47]} 9. O-O {[%clk 0:02:15]}  Bb7 {[%clk 0:02:46]} 10. a4 {[%clk 0:01:55]}  b4 {[%clk 0:02:44]} 11. Ne2 {[%clk 0:01:54]}  Qc7 {[%clk 0:02:43]} 12. c3 {[%clk 0:01:54]}  bxc3 {[%clk 0:02:43]} 13. bxc3 {[%clk 0:01:54]}  f6 {[%clk 0:02:43]} 14. d4 {[%clk 0:01:53]}  a5 {[%clk 0:02:31]} 15. exf6 {[%clk 0:01:51]}  Nxf6 {[%clk 0:02:30]} 16. Ng5 {[%clk 0:01:50]}  Qd7 {[%clk 0:01:58]} 17. Rb1 {[%clk 0:01:50]}  Ba6 {[%clk 0:01:56]} 18. Re1 {[%clk 0:01:48]}  h6 {[%clk 0:01:55]} 19. Nxe6 {[%clk 0:01:38]}  Qxe6 {[%clk 0:01:50]} 20. dxc5 {[%clk 0:01:33]}  Bxc5+ {[%clk 0:01:46]} 21. Nd4 {[%clk 0:01:34]}  Bxd4+ {[%clk 0:01:45]} 22. cxd4 {[%clk 0:01:34]}  Ne4 {[%clk 0:01:45]} 23. Rb6 {[%clk 0:01:20]}  Bc4 {[%clk 0:01:08]} 24. Ba3 {[%clk 0:01:06]}  Kf7 {[%clk 0:01:00]} 25. Rb7+ {[%clk 0:01:00]}  Kg6 {[%clk 0:00:54]} 26. Qc2 {[%clk 0:00:53]}  Rhe8 {[%clk 0:00:30]} 27. Rb6 {[%clk 0:00:51]}  Kh7 {[%clk 0:00:28]} 28. Bc5 {[%clk 0:00:32]}  Rab8 {[%clk 0:00:25]} 29. Rxb8 {[%clk 0:00:20]}  Rxb8 {[%clk 0:00:25]} 30. Bxe4+ {[%clk 0:00:18]}  dxe4 {[%clk 0:00:25]} 31. Rxe4 {[%clk 0:00:00]}  Qg6 {[%clk 0:00:19]} 0-1


[Site "https://www.chess.com"]